{"text_format":"1","workbook":"xlsx","n_sheets":4,"sheets":["Istruzioni","Configurazione","Fattura","Elenchi"],"not_rendered":{"charts":0,"images":1,"macros":1,"external_links":0,"defined_names":2,"comments":0,"pivot_tables":0},"unopened":[],"bounds":{"document_bytes":16777216,"sheet_cells":100000,"rows_first":2000,"rows_last":500,"rows_between":2000,"halvings":0,"cell_chars":16384,"cell_head_chars":4096},"cells_cut":0,"cells_raw":0,"read":"whole","date_system":"1900"}

{"sheet":"Istruzioni","index":0,"n_rows":17,"n_cols":2,"rows_kept":17,"cut":false,"hidden":false,"merged":[]}
[]
[null,"Istruzioni"]
[null,"Nel foglio \"Configurazione\" devi inserire i dati della tua azienda"]
[null,"Nel foglio \"Fattura\", sulla destra devi inserire i dati del documento, del cliente e le modalità di pagamento"]
[null,"Nel foglio \"fattura\" puoi richiamare le funzionalità seguenti con i relativi pulsanti:"]
[null,"• Stampa PDF: produce una stampa PDF della fattura"]
[null,"• Genera Fattura XML: produce l'XML della fattura nel formato della fatturazione elettronica pronto per essere caricato sul portale \"Fatture e corrispettivi\" dell'Agenzia delle Entrate"]
[null,"• Pulisci Modulo: ripulisce i dati della fattura per poter inserire una nuova fattura"]
[null,"Il foglio \"Elenchi\" non va modificato. Contiene degli elenchi di informazioni richiamate sul foglio Fattura"]
[]
[null,"Per maggiori informazioni visita la pagina"]
[null,"https://www.gardainformatica.it/modello-excel-fatture"]
[]
[null,"Questo modello Excel è una risorsa gratuita di Garda Informatica"]
[]
[null,"Garda Informatica è la Software House che realizza Gestionali in Cloud, su misura e in tempi rapidi, grazie al META-Sviluppo RAPIDO."]
[null,"https://www.gardainformatica.it"]

{"sheet":"Configurazione","index":1,"n_rows":18,"n_cols":4,"rows_kept":18,"cut":false,"hidden":false,"merged":[]}
["I dati della tua azienda"]
[]
["Denominazione / Nome e cognome","AZIENDA ESEMPIO SRL"]
["Partita IVA","01234567890"]
["Codice fiscale","01234567890"]
["Regime fiscale","RF01: Ordinario",null,{"$f":"VLOOKUP(B6,RegimiFiscali[],2,FALSE)","v":"RF01"}]
["Indirizzo","Via Roma"]
["Numero civico","1"]
["CAP","00100"]
["Comune","Roma"]
["Provincia","RM"]
["REA Ufficio","RM","<- Obbligatorio per società soggette al vincolo dell’iscrizione nel registro delle imprese"]
["REA Numero",123456,"<- Obbligatorio per società soggette al vincolo dell’iscrizione nel registro delle imprese"]
["Capitale sociale",10000,"<- Obbligatorio nei soli casi di società di capitali (SpA, SApA, SRL)"]
["Socio unico","SM: Più soci","<- Obbligatorio nei soli casi di SpA e SRL",{"$f":"VLOOKUP(B15,Soci[],2,FALSE)","v":"SM"}]
["Stato liquidazione","LN: Non in liquidazione",null,{"$f":"VLOOKUP(B16,Liquidazione[],2,FALSE)","v":"LN"}]
["Telefono","0300000000"]
["Email","info@gardainformatica.it"]

{"sheet":"Fattura","index":2,"n_rows":42,"n_cols":28,"rows_kept":42,"cut":false,"hidden":false,"merged":[[14,0,14,2],[1,25,1,30],[7,15,7,16],[8,15,8,16],[9,15,9,16],[10,15,10,16],[8,0,8,8],[9,0,9,8],[10,0,10,8],[7,0,7,8],[5,0,5,5],[0,0,3,0],[0,1,0,8],[1,1,1,8],[2,1,2,8],[3,1,3,8],[41,0,41,1],[40,5,41,6],[40,7,41,8],[25,0,25,2],[25,4,25,5],[32,0,32,1],[32,5,32,6],[32,7,32,8],[31,0,31,1],[33,0,33,1],[34,0,34,1],[30,7,30,8],[31,7,31,8],[33,7,33,8],[30,5,30,6],[31,5,31,6],[35,0,35,1],[38,0,38,1],[39,0,39,1],[40,0,40,1],[12,4,12,5],[13,4,13,5],[28,4,28,5],[14,4,14,5],[18,4,18,5],[19,4,19,5],[26,4,26,5],[27,4,27,5],[24,0,24,2],[24,4,24,5],[12,0,12,2],[13,0,13,2],[28,0,28,2],[30,0,30,1],[18,0,18,2],[19,0,19,2],[26,0,26,2],[27,0,27,2],[20,0,20,2],[21,0,21,2],[18,23,18,24],[34,5,34,6],[34,7,34,8],[15,0,15,2],[15,4,15,5],[16,0,16,2],[16,4,16,5],[17,0,17,2],[17,4,17,5],[33,5,33,6],[20,4,20,5],[21,4,21,5],[22,0,22,2],[22,4,22,5],[23,0,23,2],[23,4,23,5]]}
[null,{"$f":"Configurazione!B3","v":"AZIENDA ESEMPIO SRL"},null,null,null,null,null,null,null,null,"Unique","Codice IVA","Perc.","Natura","Classe IVA","Descrizione","Esigibilita","Imponibile","Imposta","Tipo pagamento",{"$f":"Y39","v":"Bonifico 30-60 gg F.M."},null,null,"Compila i dati qui sotto"]
[null,{"$f":"CONCATENATE(Configurazione!B7,\" \",Configurazione!B8,\" – \",Configurazione!B9,\" \",Configurazione!B10,\" (\",Configurazione!B11,\")\")","v":"Via Roma 1 – 00100 Roma (RM)"},null,null,null,null,null,null,null,null,{"$f":"IFERROR(INDEX($I$14:$I$29, MATCH(0, COUNTIF($K$1:K1, $I$14:$I$29), 0)), \"\")","v":"22"},{"$f":"IF(K2=0,\"\",K2)","v":"22"},{"$f":"IF(L2=\"\",\"\",VLOOKUP(L2,IVA[],2,FALSE))","v":0.22},{"$f":"IF(LEFT(O2, 1)=\"N\",O2,\"\")","v":""},{"$f":"IF(L2=\"\",\"\",VLOOKUP(L2,IVA[],4,FALSE))","v":"Imponibile"},{"$f":"IF(L2=\"\",\"\",VLOOKUP(L2,IVA[],5,FALSE))","v":"Imponibile 22%"},{"$f":"IF(O2=\"SplitPayment\",\"S\",\"I\")","v":"I"},{"$f":"IF(L2=\"\",\"\",SUMIFS($H$14:$H$29,$I$14:$I$29,L2))","v":225},{"$f":"IF(L2=\"\",\"\",R2*M2)","v":49.5},"Banca",{"$f":"Y40","v":"Intesa Sanpaolo"},null,null,"Progressivo invio","00001","<-- Ogni volta che invii un XML alla fatturazione elettronica devi incrementare questo numero"]
[null,{"$f":"CONCATENATE(\"Tel. \",Configurazione!B17,\" – E-mail \",Configurazione!B18)","v":"Tel. 0300000000 – E-mail info@gardainformatica.it"},null,null,null,null,null,null,null,null,{"$f":"IFERROR(INDEX($I$14:$I$29, MATCH(0, COUNTIF($K$1:K2, $I$14:$I$29), 0)), \"\")","v":"22sp"},{"$f":"IF(K3=0,\"\",K3)","v":"22sp"},{"$f":"IF(L3=\"\",\"\",VLOOKUP(L3,IVA[],2,FALSE))","v":0.22},{"$f":"IF(LEFT(O3, 1)=\"N\",O3,\"\")","v":""},{"$f":"IF(L3=\"\",\"\",VLOOKUP(L3,IVA[],4,FALSE))","v":"SplitPayment"},{"$f":"IF(L3=\"\",\"\",VLOOKUP(L3,IVA[],5,FALSE))","v":"Imp. 22% con scissione pagamenti"},{"$f":"IF(O3=\"SplitPayment\",\"S\",\"I\")","v":"S"},{"$f":"IF(L3=\"\",\"\",SUMIFS($H$14:$H$29,$I$14:$I$29,L3))","v":1000},{"$f":"IF(L3=\"\",\"\",R3*M3)","v":220},"IBAN",{"$f":"Y41","v":"IT01L2345678901234567890123"}]
[null,{"$f":"CONCATENATE(\"C.F. \",Configurazione!B5,\" – P.IVA \",Configurazione!B4,\" – Reg. Imprese \",Configurazione!B12,\"-\",Configurazione!B13)","v":"C.F. 01234567890 – P.IVA 01234567890 – Reg. Imprese RM-123456"},null,null,null,null,null,null,null,null,{"$f":"IFERROR(INDEX($I$14:$I$29, MATCH(0, COUNTIF($K$1:K3, $I$14:$I$29), 0)), \"\")","v":""},"",{"$f":"IF(L4=\"\",\"\",VLOOKUP(L4,IVA[],2,FALSE))","v":""},"",{"$f":"IF(L4=\"\",\"\",VLOOKUP(L4,IVA[],4,FALSE))","v":""},{"$f":"IF(L4=\"\",\"\",VLOOKUP(L4,IVA[],5,FALSE))","v":""},"I",{"$f":"IF(L4=\"\",\"\",SUMIFS($H$14:$H$29,$I$14:$I$29,L4))","v":""},""]
[null,null,null,null,null,null,null,null,null,null,{"$f":"IFERROR(INDEX($I$14:$I$29, MATCH(0, COUNTIF($K$1:K4, $I$14:$I$29), 0)), \"\")","v":""},"",{"$f":"IF(L5=\"\",\"\",VLOOKUP(L5,IVA[],2,FALSE))","v":""},"",{"$f":"IF(L5=\"\",\"\",VLOOKUP(L5,IVA[],4,FALSE))","v":""},{"$f":"IF(L5=\"\",\"\",VLOOKUP(L5,IVA[],5,FALSE))","v":""},"I",{"$f":"IF(L5=\"\",\"\",SUMIFS($H$14:$H$29,$I$14:$I$29,L5))","v":""},""]
[{"$f":"CONCATENATE(Y6,\" nr. \")","v":"TD01: fattura nr. "},null,null,null,null,null,{"$f":"Y7","v":"1/2026"},"del",{"$f":"Y8","v":46240},null,{"$f":"IFERROR(INDEX($I$14:$I$29, MATCH(0, COUNTIF($K$1:K5, $I$14:$I$29), 0)), \"\")","v":""},"",{"$f":"IF(L6=\"\",\"\",VLOOKUP(L6,IVA[],2,FALSE))","v":""},"",{"$f":"IF(L6=\"\",\"\",VLOOKUP(L6,IVA[],4,FALSE))","v":""},{"$f":"IF(L6=\"\",\"\",VLOOKUP(L6,IVA[],5,FALSE))","v":""},"I",{"$f":"IF(L6=\"\",\"\",SUMIFS($H$14:$H$29,$I$14:$I$29,L6))","v":""},"",null,null,null,{"$f":"VLOOKUP(Y6,TipoDoc[],2,FALSE)","v":"TD01"},"Tipo documento","TD01: fattura",null,"Causale",""]
[null,null,null,null,null,null,null,null,null,null,"Fine Mese",{"$f":"VLOOKUP(Y39,Pagamenti[],3)","v":"Sì"},"Codice Pagamento",{"$f":"VLOOKUP(Y39,Pagamenti[],2)","v":"MP05"},{"$f":"IF(L10=0,\"TP02\",\"TP01\")","v":"TP01"},"Iva non dovuta","I",{"$f":"SUMIFS(S2:S6,Q2:Q6,\"S\")","v":220},null,null,null,null,null,"Numero fattura","1/2026",null,"Bollo virtuale","NO"]
["Dati cliente",null,null,null,null,null,null,null,null,null,null,"GG","Percentuale","Data scad.","Imp. Pagam","Tot. Imponibile",null,{"$f":"SUM(R2:R6)","v":1225},null,null,null,null,null,"Data fattura",46240,null,"Importo bollo",0]
[{"$f":"Y11","v":"CLIENTE ESEMPIO SRL"},null,null,null,null,null,null,null,null,null,"gg1",{"$f":"VLOOKUP(Y39,Pagamenti[],4,FALSE)","v":30},{"$f":"VLOOKUP(Y39,Pagamenti[],5,FALSE)","v":0.5},{"$f":"IF($L$7=\"No\",$Y$8+L9,IF(MOD(L9, 30)=0,EOMONTH($Y$8,INT(L9/30)),EOMONTH($Y$8+L9,0)))","v":46295},{"$f":"M9*$R$12","v":637.25},"Tot. IVA",null,{"$f":"SUM(S2:S6)","v":269.5}]
[{"$f":"CONCATENATE(AB10,\" \",AB11,\" – \",AB12,\" \",AB13,\" (\",AB14,\") – \",AB15)","v":"Via Milano 10 – 20100 Milano (MI) – IT"},null,null,null,null,null,null,null,null,null,"gg2",{"$f":"VLOOKUP(Y39,Pagamenti[],6,FALSE)","v":60},{"$f":"VLOOKUP(Y39,Pagamenti[],7,FALSE)","v":0.5},{"$f":"IF(L10=0,\"\",IF($L$7=\"No\",$Y$8+L10,IF(MOD(L10, 30)=0,EOMONTH($Y$8,INT(L10/30)),EOMONTH($Y$8+L10,0))))","v":46326},{"$f":"IF(L10=0,\"\",M10*$R$12)","v":637.25},"Tot. Documento",null,{"$f":"R8+R9","v":1494.5},null,null,null,null,{"$f":"VLOOKUP(Y10,FTrasmissione[],2,FALSE)","v":"FPR12"},"Formato trasmissione","Fattura verso Aziende/Privati",null,"Indirizzo","Via Milano"]
[{"$f":"CONCATENATE(\"C.F. \",Y13,\" – P.IVA \",Y12)","v":"C.F.  – P.IVA 012345678901"},null,null,null,null,null,null,null,null,null,"gg3",{"$f":"VLOOKUP(Y39,Pagamenti[],8,FALSE)","v":0},{"$f":"VLOOKUP(Y39,Pagamenti[],9,FALSE)","v":0},{"$f":"IF(L11=0,\"\",IF($L$7=\"No\",$Y$8+L11,IF(MOD(L11, 30)=0,EOMONTH($Y$8,INT(L11/30)),EOMONTH($Y$8+L11,0))))","v":""},{"$f":"IF(L11=0,\"\",M11*$R$12)","v":""},"Iva a carico del cess./committ.",null,{"$f":"-1*R7","v":-220},null,null,null,null,null,"Denominazione / Nome e cognome","CLIENTE ESEMPIO SRL",null,"Numero civico","10"]
[null,null,null,null,null,null,null,null,null,null,"gg4",{"$f":"VLOOKUP(Y39,Pagamenti[],10,FALSE)","v":0},{"$f":"VLOOKUP(Y39,Pagamenti[],11,FALSE)","v":0},"","","Tot. Dovuto",null,{"$f":"R10+R11","v":1274.5},null,null,null,null,null,"Partita IVA","012345678901",null,"CAP","20100"]
["Descrizione",null,null,"Q.tà","Prezzo",null,"Sconto","Importo","IVA",null,"Classe IVA","Esigibilità","Perc.","Natura",null,null,null,null,null,null,null,null,null,"Codice fiscale","",null,"Comune","Milano"]
["prova",null,null,1,250,null,0.1,{"$f":"IF(A14=\"\",\"\",D14*E14*(1-G14))","v":225},"22",null,{"$f":"IF(I14=\"\",\"\",VLOOKUP(I14,IVA[],4,FALSE))","v":"Imponibile"},{"$f":"IF(I14=\"\",\"\",IF(K14=\"SplitPayment\",\"S\",\"I\"))","v":"I"},{"$f":"IF(I14=\"\",\"\",VLOOKUP(I14,IVA[],2,FALSE))","v":0.22},{"$f":"IF(LEFT(K14, 1)=\"N\",K14,\"\")","v":""},null,null,null,null,null,null,null,null,null,"Codice destinatario","0000000",null,"Provincia","MI"]
["altro",null,null,2,500,null,null,{"$f":"IF(A15=\"\",\"\",D15*E15*(1-G15))","v":1000},"22sp",null,{"$f":"IF(I15=\"\",\"\",VLOOKUP(I15,IVA[],4,FALSE))","v":"SplitPayment"},{"$f":"IF(I15=\"\",\"\",IF(K15=\"SplitPayment\",\"S\",\"I\"))","v":"S"},{"$f":"IF(I15=\"\",\"\",VLOOKUP(I15,IVA[],2,FALSE))","v":0.22},{"$f":"IF(LEFT(K15, 1)=\"N\",K15,\"\")","v":""},null,null,null,null,null,null,null,null,null,"PEC destinatario","",null,"Nazione","IT"]
[null,null,null,null,null,null,null,"","",null,{"$f":"IF(I16=\"\",\"\",VLOOKUP(I16,IVA[],4,FALSE))","v":""},"",{"$f":"IF(I16=\"\",\"\",VLOOKUP(I16,IVA[],2,FALSE))","v":""},""]
[null,null,null,null,null,null,null,"","",null,{"$f":"IF(I17=\"\",\"\",VLOOKUP(I17,IVA[],4,FALSE))","v":""},"",{"$f":"IF(I17=\"\",\"\",VLOOKUP(I17,IVA[],2,FALSE))","v":""},"",null,null,null,null,null,null,null,null,null,"<- Compila le righe dellla fattura a sinistra"]
[null,null,null,null,null,null,null,"","",null,{"$f":"IF(I18=\"\",\"\",VLOOKUP(I18,IVA[],4,FALSE))","v":""},"",{"$f":"IF(I18=\"\",\"\",VLOOKUP(I18,IVA[],2,FALSE))","v":""},""]
[null,null,null,null,null,null,null,"","",null,{"$f":"IF(I19=\"\",\"\",VLOOKUP(I19,IVA[],4,FALSE))","v":""},"",{"$f":"IF(I19=\"\",\"\",VLOOKUP(I19,IVA[],2,FALSE))","v":""},"",null,null,null,null,null,null,null,null,null,"Documento emesso in seguito a/documento collegato"]
[null,null,null,null,null,null,null,"","",null,{"$f":"IF(I20=\"\",\"\",VLOOKUP(I20,IVA[],4,FALSE))","v":""},"",{"$f":"IF(I20=\"\",\"\",VLOOKUP(I20,IVA[],2,FALSE))","v":""},"",null,null,null,null,null,null,null,null,{"$f":"IF(Y20=\"\",\"\",VLOOKUP(Y20,DocCollegati[],2,FALSE))","v":""},"Tipo doc.",null,null,"CIG"]
[null,null,null,null,null,null,null,"","",null,{"$f":"IF(I21=\"\",\"\",VLOOKUP(I21,IVA[],4,FALSE))","v":""},"",{"$f":"IF(I21=\"\",\"\",VLOOKUP(I21,IVA[],2,FALSE))","v":""},"",null,null,null,null,null,null,null,null,null,"N°",null,null,"CUP"]
[null,null,null,null,null,null,null,"","",null,{"$f":"IF(I22=\"\",\"\",VLOOKUP(I22,IVA[],4,FALSE))","v":""},"",{"$f":"IF(I22=\"\",\"\",VLOOKUP(I22,IVA[],2,FALSE))","v":""},"",null,null,null,null,null,null,null,null,null,"Data",null,null,"Commessa / Convenzione"]
[null,null,null,null,null,null,null,"","",null,{"$f":"IF(I23=\"\",\"\",VLOOKUP(I23,IVA[],4,FALSE))","v":""},"",{"$f":"IF(I23=\"\",\"\",VLOOKUP(I23,IVA[],2,FALSE))","v":""},""]
[null,null,null,null,null,null,null,"","",null,{"$f":"IF(I24=\"\",\"\",VLOOKUP(I24,IVA[],4,FALSE))","v":""},"",{"$f":"IF(I24=\"\",\"\",VLOOKUP(I24,IVA[],2,FALSE))","v":""},""]
[null,null,null,null,null,null,null,"","",null,{"$f":"IF(I25=\"\",\"\",VLOOKUP(I25,IVA[],4,FALSE))","v":""},"",{"$f":"IF(I25=\"\",\"\",VLOOKUP(I25,IVA[],2,FALSE))","v":""},""]
[null,null,null,null,null,null,null,"","",null,{"$f":"IF(I26=\"\",\"\",VLOOKUP(I26,IVA[],4,FALSE))","v":""},"",{"$f":"IF(I26=\"\",\"\",VLOOKUP(I26,IVA[],2,FALSE))","v":""},""]
[null,null,null,null,null,null,null,"","",null,{"$f":"IF(I27=\"\",\"\",VLOOKUP(I27,IVA[],4,FALSE))","v":""},"",{"$f":"IF(I27=\"\",\"\",VLOOKUP(I27,IVA[],2,FALSE))","v":""},""]
[null,null,null,null,null,null,null,"","",null,{"$f":"IF(I28=\"\",\"\",VLOOKUP(I28,IVA[],4,FALSE))","v":""},"",{"$f":"IF(I28=\"\",\"\",VLOOKUP(I28,IVA[],2,FALSE))","v":""},""]
[null,null,null,null,null,null,null,"","",null,{"$f":"IF(I29=\"\",\"\",VLOOKUP(I29,IVA[],4,FALSE))","v":""},"",{"$f":"IF(I29=\"\",\"\",VLOOKUP(I29,IVA[],2,FALSE))","v":""},""]
[]
["IVA",null,"Imponibile","Imposta",null,"Totali"]
[{"$f":"P2","v":"Imponibile 22%"},null,{"$f":"IF(L2=\"\",\"\",R2)","v":225},{"$f":"IF(L2=\"\",\"\",S2)","v":49.5},null,"Tot. Imponibile",null,{"$f":"R8","v":1225}]
[{"$f":"P3","v":"Imp. 22% con scissione pagamenti"},null,{"$f":"IF(L3=\"\",\"\",R3)","v":1000},{"$f":"IF(L3=\"\",\"\",S3)","v":220},null,"Tot. IVA",null,{"$f":"R9","v":269.5}]
[{"$f":"P4","v":""},null,{"$f":"IF(L4=\"\",\"\",R4)","v":""},"",null,"Tot. Documento",null,{"$f":"R10","v":1494.5}]
[{"$f":"P5","v":""},null,"","",null,{"$f":"IF(R7=0,\"\",\"Iva a carico del cess./committ.\")","v":"Iva a carico del cess./committ."},null,{"$f":"IF(R7=0,\"\",R11)","v":-220}]
[{"$f":"P6","v":""},null,"",""]
[null,null,null,null,null,null,null,null,null,null,null,null,null,null,null,null,null,null,null,null,null,null,null,"Compila i dati dipagamento qui sotto"]
["Pagamento",null,"Scadenze"]
[{"$f":"U1","v":"Bonifico 30-60 gg F.M."},null,{"$f":"N9","v":46295},{"$f":"O9","v":637.25},null,null,null,null,null,null,null,null,null,null,null,null,null,null,null,null,null,null,null,"Tipo pagamento","Bonifico 30-60 gg F.M."]
[{"$f":"IF(N7=\"MP05\",CONCATENATE(\"Banca \",U2),\"\")","v":"Banca Intesa Sanpaolo"},null,{"$f":"N10","v":46326},{"$f":"O10","v":637.25},null,null,null,null,null,null,null,null,null,null,null,null,null,null,null,null,null,null,null,"Banca","Intesa Sanpaolo"]
[{"$f":"IF(N7=\"MP05\",CONCATENATE(\"IBAN: \",U3),\"\")","v":"IBAN: IT01L2345678901234567890123"},null,"","",null,"Tot. Dovuto",null,{"$f":"R12","v":1274.5},null,null,null,null,null,null,null,null,null,null,null,null,null,null,null,"IBAN","IT01L2345678901234567890123"]
[null,null,"",""]

{"sheet":"Elenchi","index":3,"n_rows":150,"n_cols":11,"rows_kept":150,"cut":false,"hidden":false,"merged":[]}
["Regimi fiscali"]
["Selezione","Codice","Descrizione"]
[{"$f":"CONCATENATE(B3,\": \",C3)","v":"RF01: Ordinario"},"RF01","Ordinario"]
["RF02: Contribuenti minimi (art.1, c.96-117, L. 244/07)","RF02","Contribuenti minimi (art.1, c.96-117, L. 244/07)"]
["RF04: Agricoltura e attività connesse e pesca (artt.34 e 34-bis, DPR 633/72)","RF04","Agricoltura e attività connesse e pesca (artt.34 e 34-bis, DPR 633/72)"]
["RF05: Vendita sali e tabacchi (art.74, c.1, DPR. 633/72)","RF05","Vendita sali e tabacchi (art.74, c.1, DPR. 633/72)"]
["RF06: Commercio fiammiferi (art.74, c.1, DPR  633/72)","RF06","Commercio fiammiferi (art.74, c.1, DPR  633/72)"]
["RF07: Editoria (art.74, c.1, DPR  633/72)","RF07","Editoria (art.74, c.1, DPR  633/72)"]
["RF08: Gestione servizi telefonia pubblica (art.74, c.1, DPR 633/72)","RF08","Gestione servizi telefonia pubblica (art.74, c.1, DPR 633/72)"]
["RF09: Rivendita documenti di trasporto pubblico e di sosta (art.74, c.1, DPR  633/72)","RF09","Rivendita documenti di trasporto pubblico e di sosta (art.74, c.1, DPR  633/72)"]
["RF10: Intrattenimenti, giochi e altre attività di cui alla tariffa allegata al DPR 640/72 (art.74, c.6, DPR 633/72)","RF10","Intrattenimenti, giochi e altre attività di cui alla tariffa allegata al DPR 640/72 (art.74, c.6, DPR 633/72)"]
["RF11: Agenzie viaggi e turismo (art.74-ter, DPR 633/72)","RF11","Agenzie viaggi e turismo (art.74-ter, DPR 633/72)"]
["RF12: Agriturismo (art.5, c.2, L. 413/91)","RF12","Agriturismo (art.5, c.2, L. 413/91)"]
["RF13: Vendite a domicilio (art.25-bis, c.6, DPR  600/73)","RF13","Vendite a domicilio (art.25-bis, c.6, DPR  600/73)"]
["RF14: Rivendita beni usati, oggetti d’arte, d’antiquariato o da collezione (art.36, DL 41/95)","RF14","Rivendita beni usati, oggetti d’arte, d’antiquariato o da collezione (art.36, DL 41/95)"]
["RF15: Agenzie di vendite all’asta di oggetti d’arte, antiquariato o da collezione (art.40-bis, DL 41/95)","RF15","Agenzie di vendite all’asta di oggetti d’arte, antiquariato o da collezione (art.40-bis, DL 41/95)"]
["RF16: IVA per cassa P.A. (art.6, c.5, DPR 633/72)","RF16","IVA per cassa P.A. (art.6, c.5, DPR 633/72)"]
["RF17: IVA per cassa (art. 32-bis, DL 83/2012)","RF17","IVA per cassa (art. 32-bis, DL 83/2012)"]
["RF18: Altro","RF18","Altro"]
["RF19: Regime forfettario (art.1, c.54-89, L. 190/2014)","RF19","Regime forfettario (art.1, c.54-89, L. 190/2014)"]
[]
[]
["Socio unico/Più soci"]
["Selezione","Codice","Descrizione"]
[{"$f":"IF(B25=\"\",\"\",CONCATENATE(B25,\": \",C25))","v":""}]
[{"$f":"IF(B26=\"\",\"\",CONCATENATE(B26,\": \",C26))","v":"SU: Socio unico"},"SU","Socio unico"]
[{"$f":"IF(B27=\"\",\"\",CONCATENATE(B27,\": \",C27))","v":"SM: Più soci"},"SM","Più soci"]
[]
["Stato liquidazione"]
["Selezione","Codice","Descrizione"]
[{"$f":"CONCATENATE(B31,\": \",C31)","v":"LS: In liquidazione"},"LS","In liquidazione"]
[{"$f":"CONCATENATE(B32,\": \",C32)","v":"LN: Non in liquidazione"},"LN","Non in liquidazione"]
[]
["Tipi documenti"]
["Selezione","Codice","Descrizione"]
[{"$f":"IF(B36=\"\",C36,CONCATENATE(B36,\": \",C36))","v":"fattura pro-forma"},null,"fattura pro-forma"]
["TD01: fattura","TD01","fattura"]
["TD02: acconto/anticipo su fattura","TD02","acconto/anticipo su fattura"]
["TD03: acconto/anticipo su parcella","TD03","acconto/anticipo su parcella"]
["TD04: nota di credito","TD04","nota di credito"]
["TD05: nota di debito","TD05","nota di debito"]
["TD06: parcella","TD06","parcella"]
["TD24: fattura differita di cui all'art. 21, comma 4, lett. a)","TD24","fattura differita di cui all'art. 21, comma 4, lett. a)"]
["TD25: fattura differita di cui all'art. 21, comma 4, terzo periodo lett. b)","TD25","fattura differita di cui all'art. 21, comma 4, terzo periodo lett. b)"]
["TD26: cessione di beni ammortizzabili e per passaggi interni (ex art.36 DPR 633/72)","TD26","cessione di beni ammortizzabili e per passaggi interni (ex art.36 DPR 633/72)"]
["TD27: fattura per autoconsumo o per cessioni gratuite senza rivalsa","TD27","fattura per autoconsumo o per cessioni gratuite senza rivalsa"]
[]
["Pagamenti"]
["Nome pagamento","Codice Fatt. Elett.","Fine Mese","gg1","perc1","gg2","perc2","gg3","perc3","gg4","perc4"]
["Assegno","MP02","No",0,1]
["Assegno circolare","MP03","No",0,1]
["Bancomat","MP08","No",0,1]
["Bonifico 30 gg D.F.","MP05","No",30,1]
["Bonifico 60 gg D.F.","MP05","No",60,1]
["Bonifico 90 gg D.F.","MP05","No",90,1]
["Bonifico 120 gg D.F.","MP05","No",120,1]
["Bonifico 30 gg F.M.","MP05","Sì",30,1]
["Bonifico 30-60 gg F.M.","MP05","Sì",30,0.5,60,0.5]
["Bonifico 30-60-90 gg F.M.","MP05","Sì",30,0.33,60,0.33,90,0.34]
["Bonigico 30-60-90-120 gg F.M.","MP05","Sì",30,0.25,60,0.25,90,0.25,120,0.25]
["Bonifico 60 gg F.M.","MP05","Sì",60,1]
["Bonifico 90 gg F.M.","MP05","Sì",90,1]
["Bonifico 120 gg F.M.","MP05","Sì",120,1]
["Bonifico vista fattura","MP05","No",0,1]
["Carta di credito","MP08","No",0,1]
["Contanti","MP01","No",0,1]
["Contrassegno","MP01","No",0,1]
["Incasso corrispettivi","MP01","No",0,1]
["PayPal","MP08","No",0,1]
["RIBA 30 gg F.M.","MP12","Sì",30,1]
["RIBA 30-60 gg F.M.","MP12","Sì",30,0.5,60,0.5]
["RIBA 30-60-90 gg F.M.","MP12","Sì",30,0.33,60,0.33,90,0.34]
["RIBA 60 gg F.M.","MP12","Sì",60,1]
["RIBA 90 gg F.M.","MP12","Sì",90,1]
["Rimessa diretta","MP01","No",0,1]
["SDD B2B","MP21","No",0,1]
["SDD Core","MP20","No",0,1]
["TeamSystem Pay","MP08","No",0,1]
[]
["IVA"]
["Codice","Percentual IVA","Percentuale IVA indetraibile","Classe IVA","descrizione","note"]
["10",0.1,0,"Imponibile","Imponibile 10%"]
["10sp",0.1,0,"SplitPayment","Imp. 10% con scissione pagamenti","Split payment verso P.A."]
["22",0.22,0,"Imponibile","Imponibile 22%"]
["22d",0.22,0.5,"Imponibile","Imp. 22% detr. al 50%"]
["22i",0.22,1,"Imponibile","Imp. 22% indetraibile"]
["22sp",0.22,0,"SplitPayment","Imp. 22% con scissione pagamenti","Split payment verso P.A."]
["4",0.04,0,"Imponibile","Imponibile 4%"]
["4sp",0.04,0,"SplitPayment","Imp. 4% con scissione pagamenti","Split payment verso P.A."]
["E10",0,0,"N4","Esente art. 10 DPR 633/72"]
["FC",0,0,"N2.2","Fuori campo IVA","(Riservato alle Spese fuori campo Iva)"]
["N41",0,0,"N3.2","Non imp. art. 41 D.L. 331/93","Cessioni UE"]
["N71",0,0,"N3.3","Non imp. art. 71 DPR 633/72 S. Marino","Cessioni San Marino"]
["N9",0,0,"N3.4","Non imp. art. 9 DPR 633/72","Trasporti extra-UE"]
["OMG",0,0,"N4","Omaggi art. 2 c. 2 n. 4 DPR 633/72","Cessione gratuita beni oggetto dell'attivitÃ "]
["X15",0,0,"N1","Escluso art. 15 DPR 633/72","Spese per conto dei clienti"]
["NS7x",0,0,"N2.1","Non sogg. art. 7-ter DPR 633/72 extra-UE","Prestaz. servizi extra-UE"]
["R74",0,0,"N6.1","Rev. charge art. 74 c. 7-8 DPR 633/72","Cessione rottami"]
["N8a",0,0,"N3.1","Non imp. art. 8 c. 1 lett. a DPR 633/72","Cessioni extra-UE"]
["N8b",0,0,"N3.1","Non imp. art. 8 c. 1 lett. b DPR 633/72","Cessioni extra-UE (trasp. a cura del cliente)"]
["5",0.05,0,"Imponibile","Imponibile 5%"]
["5sp",0.05,0,"SplitPayment","Imp. 5% con scissione pagamenti","Split payment verso P.A."]
["N8c",0,0,"N3.5","Non imp. art. 8 c. 1 lett. c DPR 633/72","Dichiarazione d'intento"]
["NS74",0,0,"N2.2","Non sogg. art. 74 c. 1 DPR 633/72","Tabacchi, editoria, ric. telefoniche"]
["RF",0,0,"N2.2","Art.1 c.54-89 L.190/2014 Reg. forfettario","Regime forfettario"]
["NS7u",0,0,"N2.1","Inv. contabile art. 7-ter DPR 633/72 UE","Prestaz. servizi UE"]
["R17a",0,0,"N6.3","Rev. charge art. 17 c. 6/a DPR 633/72","Subappalto edilizia"]
["R17b",0,0,"N6.5","Rev. charge art. 17 c. 6/b DPR 633/72","Cessione cellulari"]
["22d40",0.22,0.6,"Imponibile","Imp. 22% detr. al 40%"]
["R17c",0,0,"N6.6","Rev. charge art. 17 c. 6/c DPR 633/72","Cessione microprocessori"]
["R17t",0,0,"N6.7","Rev. charge art. 17 c. 6/a-ter DPR 633/72","Prestaz. servizi su edifici"]
["NS26",0,0,"N2.2","Non sogg. art. 26 c. 3 DPR 633/72","Nota di credito del solo imponibile"]
["E124",0,0,"N4","Esente art. 124 D.L. 34/2020","Cessione beni emergenza Covid-19"]
[]
[]
["Codici SDI comuni"]
["SDI","Descrizione"]
["0000000","NO P.IVA"]
["XXXXXXX","ESTERO"]
["M5UXCR1","TEAMSYSTEM / AGYO"]
["USAL8PV","SISTEMI"]
["W7YVJK9","WOLTERS KLUWER"]
["KRRH6B9","ARUBA"]
["A4707H7","ARXIVAR"]
["T04ZHR3","WEBCLIENT"]
["X2PH38J","BLUENEXT"]
["5RUO82D","PASSEPARTOUT"]
["T9K4ZHO","DATEV KOINOS"]
["P62QHVQ","SEAC"]
["SUBM70N","ZUCCHETTI"]
["5W4A8J1","COLDIRETTI"]
["UE2LXTM","FINSON EXPRESS"]
["BA6ET11","BUFFETTI"]
["JHBM40P","MULTIDIALOGO"]
[]
["Formato Trasmissione"]
["Descrizione","Codice"]
["Fattura verso Pubblica Amministrazione (usare codici IVA sp)","FPA12"]
["Fattura verso Aziende/Privati","FPR12"]
[]
["Documento emesso in seguito a"]
["Descrizione","Codice"]
[]
["Ordine d'acquisto","OrdineAcquisto"]
["Contratto","Contratto"]
["Convenzione","Convenzione"]
["Ricezione","Ricezione"]
["Fattura collegata","FattureCollegate"]
["Doc. di trasporto","DDT"]
["Fattura principale","FatturaPrincipale"]